Cogmind - Beta 10.2 @@@ ROGUE MODE // 2022.02.06 @ 01:50:53 Player: Zach Result: Destroyed by L-31 Rogue with Katana Performance ------------- Evolutions (2) 1000 Regions Visited (3) 600 Robots Destroyed (39) 195 Value Destroyed (1152) 1152 Prototype IDs (1) 20 Alien Tech Used (0) 0 Bonus (77) 77 TOTAL SCORE: 3044 Bonus ------- High Alert Combat Kills 77 Cogmind --------- Core Integrity 0/550 Matter 300/300 Energy 100/100 System Corruption 0% Temperature Cool (18) Movement Core (150) Ox2 Location -8/Materials Parts ------- > --- POWER (2) -------- (None) > --- PROPULSION (2) --- (None) > --- UTILITY (3) ------ Medium Storage Unit > --- WEAPON (4) ------- (None) > --- INVENTORY (8) ---- Ion Engine Light Ion Engine Aluminum Leg Aluminum Leg Peak State ------------ > --- POWER ------------ Ion Engine Light Ion Engine > --- PROPULSION ------- Aluminum Leg Improved Aluminum Leg > --- UTILITY ---------- Medium Storage Unit > --- WEAPON ----------- Improved EM Shotgun Heavy Ion Cannon Heavy Ion Cannon Shotgun > --- INVENTORY -------- Ion Engine Ion Engine Light Ion Engine Light Nuclear Core Aluminum Leg [Rating: 19] Favorites ----------- Power Ion Engine Engine Ion Engine Power Core Light Nuclear Core Propulsion Aluminum Leg Leg Aluminum Leg Utility Medium Storage Unit Device Tractor Beam Storage Medium Storage Unit Weapon Improved EM Shotgun Energy Gun Improved EM Shotgun Energy Cannon Heavy Ion Cannon Ballistic Gun Assault Rifle Launcher Grenade Launcher Build | -11 -10 -9 -8 ------- Run | Scr Mat Mat Mat Slots Evolved 4 | . . 2 2 Power 1 | . . 1 . Propulsion . | . . . . Utility 1 | . . . 1 Weapon 2 | . . 1 1 Parts Attached 36 | 8 1 17 10 Power 9 | 1 . 5 3 Engine 7 | 1 . 5 1 Core 2 | . . . 2 Reactor . | . . . . Propulsion 13 | 2 . 7 4 Treads . | . . . . Leg 13 | 2 . 7 4 Wheel . | . . . . Hover . | . . . . Flight . | . . . . Utility 3 | 2 1 . . Device 1 | 1 . . . Storage 2 | 1 1 . . Processor . | . . . . Hackware . | . . . . Protection . | . . . . Artifact . | . . . . Weapon 11 | 3 . 5 3 Energy Gun 5 | 2 . 3 . Energy Cannon 2 | . . . 2 Ballistic Gun 3 | 1 . 1 1 Ballistic Cannon . | . . . . Launcher 1 | . . 1 . Special Weapon . | . . . . Impact Weapon . | . . . . Slashing Weapon . | . . . . Piercing Weapon . | . . . . Special Melee Weapon . | . . . . Unidentified Prototypes 1 | . . 1 . Parts Lost 16 | . . 3 13 Power 6 | . . 1 5 Propulsion 3 | . . . 3 Utility 1 | . . 1 . Weapon 6 | . . 1 5 Highest Loss Streak 8 | . . 1 8 Average Slot Usage (%) 81 | . 100 88 66 Engine 14 | . 14 20 9 Core 1 | . . . 4 Leg 20 | . 28 21 17 Device 3 | . 14 3 . Storage 10 | . 14 11 9 Energy Gun 13 | . 14 18 7 Energy Cannon 3 | . . . 9 Ballistic Gun 11 | . 14 11 9 Launcher 1 | . . 2 . Naked Turns . | . . . . Heaviest Build 36 | 13 17 27 36 Greatest Support 23 | 20 20 20 23 Greatest Overweight (x) 2 | 1 . 2 2 Average Overweight (x) . | . . . . Largest Inventory Capacity 8 | 6 8 8 8 Average Capacity 7 | 5 7 8 8 Most Carried 8 | 4 4 8 7 Average Carried 5 | 1 3 5 5 Final Capacity 8 | 6 8 8 8 Final Carried 4 | 3 4 4 4 Class Distribution -------------------- 56% | Gunner 37% | Mutant 6% | Scavenger-Gunner Dominant Class ---------------- Mutant | -10/Materials Gunner | -9/Materials Gunner | -8/Materials Resources | -11 -10 -9 -8 ----------- Run | Scr Mat Mat Mat Matter Collected 767 | 286 20 302 159 Remotely 72 | 10 20 42 . Salvage Created 1520 | 93 20 761 646 Parts 94 | 3 10 40 41 Haulers Intercepted 1 | . . 1 . Recyclers Shooed . | . . . . Parts Field Recycled . | . . . . Retrieved Matter . | . . . . Parts Self-Destructed . | . . . . Prevented . | . . . . Kills | -11 -10 -9 -8 ------- Run | Scr Mat Mat Mat Combat Hostiles Destroyed 29 | . . 16 13 Guns 22 | . . 16 6 Cannons 6 | . . . 6 AOE 1 | . . . 1 Classes Destroyed 9 | 1 2 4 2 Worker 2 | . . . 2 Builder 1 | . 1 . . Hauler 1 | . . 1 . Recycler 2 | 1 . 1 . Operator 2 | . 1 1 . Watcher 2 | . . 2 . Swarmer 7 | . . 7 . Grunt 19 | . . 9 10 Sentry 3 | . . . 3 Best Kill Streak 5 | 1 1 5 5 Combat Bots Only 5 | . . 5 3 Max Kills in Single Turn 3 | 1 1 2 3 Gunslinging 1 | . . 1 . Exploded 1 | . . . 1 Melee . | . . . . Uniques/NPCs Destroyed . | . . . . Combat | -11 -10 -9 -8 -------- Run | Scr Mat Mat Mat Damage Taken 2469 | . . 738 1731 Core 722 | . . 159 563 Absorbed by Shields . | . . . . Core Remaining (%) 86 | 100 100 60 . Volleys Fired 81 | 2 4 44 31 Largest 4 | 2 2 3 4 Hottest 198 | 60 60 113 198 Shots Fired 186 | 4 7 104 71 Gun 151 | 4 7 102 38 Cannon 33 | . . . 33 Launcher 2 | . . 2 . Special . | . . . . Kinetic 72 | 2 4 39 27 Thermal 48 | . 3 12 33 Explosive 2 | . . 2 . Electromagnetic 64 | 2 . 51 11 Robot Hit Streak 7 | 1 1 7 6 Robot Miss Streak 6 | 3 2 6 4 Penetration Max . | . . . . Secondary Targets 5 | . . 5 . Max Gunslinging Chain 2 | . . 2 . Shots Hit Robots 94 | 1 2 51 40 Core Hits 71 | 1 3 29 38 Critical Hits 2 | . . . 2 Critical Kills . | . . . . Critical Parts Destroyed 2 | . . . 2 Melee Attacks . | . . . . Impact . | . . . . Slashing . | . . . . Piercing . | . . . . Sneak Attacks . | . . . . Combat Hostiles . | . . . . Follow-up Attacks . | . . . . Damage Inflicted 2372 | 27 43 1058 1244 Guns 1284 | 27 43 821 393 Cannons 536 | . . . 536 Explosions 540 | . . 232 308 Melee . | . . . . Ramming 12 | . . 5 7 Kinetic 429 | 15 33 182 199 Thermal 836 | . 10 241 585 Explosive 292 | . . 33 259 Electromagnetic 803 | 12 . 597 194 Impact . | . . . . Slashing . | . . . . Piercing . | . . . . Highest Corruption . | . . . . Average Corruption . | . . . . Corruption Purged . | . . . . Overload Shots . | . . . . Overflow Damage 76 | . . 13 63 Projectiles . | . . . . Explosions 76 | . . 13 63 Melee . | . . . . Knockbacks . | . . . . Impact . | . . . . Kinetic . | . . . . Secondary . | . . . . Self-Inflicted Damage 324 | . . 128 196 Shots 7 | . . 5 2 Rammed 7 | . . 1 6 Targets Rammed 9 | . . 1 8 Kicked 2 | . . . 2 Crushed . | . . . . Highest Temperature 410 | . . 246 410 Average Temperature 85 | . . 70 101 Received Heat Transfer 807 | . . 204 603 Siege Activations . | . . . . Robots Corrupted . | . . . . Combat Hostiles . | . . . . Parts Fried 3 | . . 3 . Impact Corruptions . | . . . . Robots Melted . | . . . . Combat Hostiles . | . . . . Parts Melted 1 | . . . 1 Heat Transferred 1215 | . 25 400 790 Parts Sabotaged . | . . . . Parts Stolen . | . . . . Parts Stripped . | . . . . Power Chain Reactions 5 | . . 3 2 Missiles Intercepted . | . . . . Alert | -11 -10 -9 -8 ------- Run | Scr Mat Mat Mat Peak Influence 609 | 5 43 338 609 Initial 118 | . 3 17 118 Average 188 | 1 19 143 336 Maximum Alert Level 2 | . . 1 2 Low Security (%) 56 | 100 100 61 25 Level 1 30 | . . 38 40 Level 2 12 | . . . 33 Level 3 . | . . . . Level 4 . | . . . . Level 5 . | . . . . High Security . | . . . . Max Security . | . . . . Squads Dispatched 10 | . . 5 5 Investigation 2 | . . 1 1 Extermination . | . . . . Reinforcement 7 | . . 4 3 Assault 1 | . . . 1 Garrison . | . . . . Intercept . | . . . . Construction Impeded 1 | . . 1 . Haulers Reinforced . | . . . . Stealth | -11 -10 -9 -8 --------- Run | Scr Mat Mat Mat Distress Signals 2 | . . 2 . Communications Jammed . | . . . . Distress Signals . | . . . . Times Spotted 61 | . 3 26 32 Peak Tracking Total 9 | . 1 5 9 Tactical Retreats 3 | . . . 3 Traps | -11 -10 -9 -8 ------- Run | Scr Mat Mat Mat Traps Triggered 3 | . . 2 1 Indirectly . | . . . . Trap Hack Attempts . | . . . . Triggered . | . . . . Disarmed . | . . . . Reprogrammed . | . . . . Reused . | . . . . Traps Extracted . | . . . . Installed . | . . . . Triggered . | . . . . Machines | -11 -10 -9 -8 ---------- Run | Scr Mat Mat Mat Machines Disabled 6 | . . 3 3 Max in Single Turn 2 | . . 1 2 Machines Sabotaged . | . . . . Garrisons Compromised . | . . . . Overloaded Fab Kills . | . . . . Fab Network Shutdowns . | . . . . Hacking | -11 -10 -9 -8 --------- Run | Scr Mat Mat Mat Machines Accessed . | . . . . Terminals . | . . . . Fabricators . | . . . . Repair Stations . | . . . . Recycling Units . | . . . . Scanalyzers . | . . . . Garrison Access . | . . . . Total Hacks . | . . . . Successful . | . . . . Failed . | . . . . Catastrophic . | . . . . Database Lockouts . | . . . . Manual . | . . . . Terminals . | . . . . Fabricators . | . . . . Repair Stations . | . . . . Recycling Units . | . . . . Scanalyzers . | . . . . Garrison Access . | . . . . Terminal Hacks . | . . . . Fabricator Hacks . | . . . . Repair Station Hacks . | . . . . Recycling Unit Hacks . | . . . . Scanalyzer . | . . . . Garrison Access Hacks . | . . . . Unauthorized Hacks . | . . . . Terminals . | . . . . Fabricators . | . . . . Repair Stations . | . . . . Recycling Units . | . . . . Scanalyzers . | . . . . Garrison Access . | . . . . Data Cores Recovered 1 | . 1 . . Used . | . . . . Hacking Detections . | . . . . Full Trace Events . | . . . . Feedback Events . | . . . . Feedback Blocked . | . . . . Robot Schematics Acquired . | . . . . Robots Built . | . . . . Matter . | . . . . Time . | . . . . Total Robot Build Rating . | . . . . Part Schematics Acquired . | . . . . Parts Built . | . . . . Matter . | . . . . Time . | . . . . Total Part Build Rating . | . . . . Parts Repaired . | . . . . Time . | . . . . Parts Recycled . | . . . . Recycled Matter . | . . . . Retrieved Matter . | . . . . Retrieved Components . | . . . . Parts Scanalyzed . | . . . . Part Schematics Acquired . | . . . . Parts Damaged . | . . . . Bothacking | -11 -10 -9 -8 ------------ Run | Scr Mat Mat Mat Used RIF Installer . | . . . . Robots Hacked . | . . . . Non-combat . | . . . . Combat . | . . . . Robot Hacks Applied . | . . . . Relay Couplers Released . | . . . . Robots Rewired . | . . . . Allies Hacked . | . . . . Hacks Repelled . | . . . . Allies | -11 -10 -9 -8 -------- Run | Scr Mat Mat Mat Total Allies . | . . . . Largest Group . | . . . . Highest-Rated Group . | . . . . Highest-Rated Ally . | . . . . Total Orders . | . . . . Ally Attacks . | . . . . Total Damage . | . . . . Kills . | . . . . Allies Corrupted . | . . . . Allies Melted . | . . . . Intel | -11 -10 -9 -8 ------- Run | Scr Mat Mat Mat Robot Analysis Total . | . . . . Derelict Logs Recovered . | . . . . Drone Launches . | . . . . Drone Recoveries . | . . . . Exploration | -11 -10 -9 -8 ------------- Run | Scr Mat Mat Mat Turns Passed 1231 | 76 191 502 462 Spaces Moved 665 | 58 146 228 233 Core 30 | 26 . . 4 Treads . | . . . . Legs 635 | 32 146 228 229 Wheels . | . . . . Hover . | . . . . Flight . | . . . . Fastest Speed 50 | 50 120 120 120 Average Speed 135 | 92 120 144 146 Slowest Speed 180 | 150 120 180 150 Overloaded Moves . | . . . . Propulsion Burnouts . | . . . . Robots Hopped . | . . . . Cave-ins Triggered . | . . . . Exploration Rate (%) 23 | 4 36 31 24 Regions Visited 3 Branch Regions . Pre-discovered Areas . | . . . . Known Exits Taken . | . . . . Unknown Exits Taken 3 | 1 1 1 . Scrap Searched . | . . . . Spaces Dug . | . . . . Terrain Destroyed 75 | . . 26 49 Melee . | . . . . Projectile 11 | . . . 11 AOE 64 | . . 26 38 Terrain Rammed . | . . . . Walls Destroyed . | . . . . Machines Disabled . | . . . . Actions | -11 -10 -9 -8 --------- Run | Scr Mat Mat Mat Total 837 | 75 155 312 295 Wait 14 | . . 8 6 Move 662 | 57 145 227 233 Hop . | . . . . Pick Up 22 | 8 3 6 5 Fast Attach 4 | 2 . 1 1 Attach 17 | 5 . 6 6 Detach . | . . . . Swap 15 | 1 1 10 3 Drop 13 | . 2 9 2 Fire 81 | 2 4 44 31 Melee . | . . . . Ram 2 | . . . 2 Kick 7 | . . 1 6 Crush . | . . . . Escape Stasis . | . . . . Rewire . | . . . . Trap . | . . . . Miscellaneous . | . . . . Route ------- -11/Scrapyard -10/Materials -9/Materials (discovered 2 exits: [*Mat] / [*Min]) -8/Materials History --------- Turn | Location | Event 10 | -11/Scrapyard | Discovered new exit (range 16) 77 | -11/Scrapyard | Entered Materials 258 | -10/Materials | Discovered new exit (range 4) 268 | -10/Materials | Entered another Materials area 268 | -9/Materials | Evolved 2 slots: Power x1, Weapon x1 479 | -9/Materials | Discovered new exit (range 7) 699 | -9/Materials | Build established: Gunner 727 | -9/Materials | Discovered new exit (range 16) 770 | -9/Materials | Entered another Materials area 770 | -8/Materials | Evolved 2 slots: Utility x1, Weapon x1 1154 | -8/Materials | Lost 3 parts (1p2w) 1170 | -8/Materials | First assault squad dispatched 1202 | -8/Materials | Core integrity fell below 50% 1221 | -8/Materials | Core integrity fell below 20% 1232 | -8/Materials | Destroyed by L-31 Rogue with Katana Last Messages --------------- 01185_ Dropped Aluminum Leg. 01186_ C-30 ARC bursts open, deploying its payload. 01186_ G-50 Soldier unfolds itself. 01186_ L-31 Rogue unfolds itself. 01186_ G-47 Trooper unfolds itself. 01186_ I-25 Savior unfolds itself. 01187_ Lgt. Nuclear Core destroyed. 01188_ U-05 Engineer lays Concrete. 01188_ Acquired 7 matter. 01190_ Ion Engine destroyed. 01190_ Imp. Aluminum Leg destroyed. 01190_ R-06 Scavenger collects Aluminum Leg. 01208_ Kicked L-31 Rogue out of the way. 01209_ Slammed into L-31 Rogue. 01213_ Aluminum Leg destroyed. 01216_ Slammed into L-31 Rogue. 01228_ Slammed into G-47 Trooper. 01230_ Kicked G-47 Trooper out of the way. 01231_ Slammed into G-47 Trooper. 01232_ Aluminum Leg destroyed. Map ----- +----------------------------------------------------+ | ???###### ###+###" ###+############### ""T | | % ! "" | | !% | | !%* | | ####### # ###+###### ################## | | ????????# # #! #?# #????????????#!!=! | | ????????# #!!==!!# """ #?# #????????????#[ [ | | ????????+ #!!==!!#/ """ #?# #???????????# "! | | ????????# ######## """ #?# #???????????#### | | ????????# #??????# #?# #??????????????# | | ????????# #??????# #?# #??????????????# | | ????????### #??????########?# #??????????????# | | ??????????? ????????????????# #??????????????# | | ??????????? ????????????????# #??????????????# | | ??????????? ????????????????# #??????????????### | | ??????????? ????????????????# #????????????????? | | ??????????? ????????????????# #????????????????? | | ???????????????????########## #????????????????? | | ???????????????????# """ # #????????????????? | | ???????????????????# """"" # #????????????????? | | ???????????????????# """"" # #????????????????? | | ???????????????????# """" # #????????????????? | | ???????????????????# """ #! #????????????????? | | ???????????????????# %+%% #????????????????? | | ???????????????????# l %#%% ##???????????????? | | ???????????????????# l@ # ##???????????????? | | ???????????????????# g g !# #????????????????? | | ???????????????????###+###### #????????????????? | | ????????????????????# """ ## #????????????????? | | ????????????????????# =""" ## #????????????????? | | ????????????????????# %""" ## #????????????????? | | ????????????????????# ## #????????????????? | | ????????????????????# ## #????????????????? | | ????????????????????# ## ##???????????????? | | ??????????????##########+### ########????????? | | ??????????# ! % "%" ???? | | ??????????# " ???? | | ??????????# ???? | | ??????????# ############## ############????? | | ???????????????????????????#######???????????????? | | ?????????????????????????????????????????????????? | | ?????????????????????????????????????????????????? | | ?????????????????????????????????????????????????? | | ?????????????????????????????????????????????????? | | ?????????????????????????????????????????????????? | | ?????????????????????????????????????????????????? | | ?????????????????????????????????????????????????? | | ?????????????????????????????????????????????????? | | ?????????????????????????????????????????????????? | | ?????????????????????????????????????????????????? | +----------------------------------------------------+ Best States ------------- Heat Dissipation 31 Energy Generation 23 Energy Capacity 400 Matter Stores 300 Matter Capacity 300 Sight Range 16 Terrain Scan Density 10 Evasion (%) 50 Item Schematics ----------------- None Robot Schematics ------------------ None Fabricated ------------ Nothing Alien Tech Used ----------------- None Achievements -------------- Significant Disruption Challenges ------------ None Game ------ Seed CryofiberMeleeMatrix Manual? 0 Play Time 00:27:37 Cumulative 17.3 hours Start 2022.02.06 @ 01:24:24 End 2022.02.06 @ 01:50:53 Sessions 1 Manual Loads 0 Difficulty Rogue Special Mode None Game No. 25 Rogue 25 Adventurer 0 Explorer 0 Win Type - Total 0 Types 0/0/0/0/0/0/0/0/0 Lore% 3 Gallery% 16 Achievement% 12 Wizard Run 0 Options --------- ASCII 0 Keyboard 0 Movement Mouse Keybinds 0 Fullscreen 1 Font 18/SmallcapsGlow Map View 76x50 Tactical HUD 1 Map Filters NONE Filters NONE Steam 1 RUN: 7766fb36-8bc8-4a88-83c2-3a4fbe16e9c0